bitfinex-derivatives/quotes_ETHF0:USTF0_20250929
["timestamp","ask_amount","ask_price","bid_price","bid_amount"]
[1759117612504,0.43775,4110.3,4110.2,1.63448012]
[1759117614804,0.5845,4111.0,4110.2,1.63448012]
[1759117614805,3.7923,4111.0,4110.3,0.3071]
[1759117615000,3.423,4111.0,4110.9,0.7351]
[1759117615407,3.86068,4111.0,4110.9,0.7351]
[1759117615607,3.64548,4111.0,4110.9,0.7351]
[1759117615805,0.43768,4111.0,4110.9,0.7351]
[1759117619305,1.19958,4111.0,4110.9,0.7351]
[1759117620427,0.00308449,4111.3,4110.9,0.428]
[1759117620428,0.43767,4111.1,4110.9,0.428]
[1759117620615,0.43767,4111.1,4111.0,0.8637]
[1759117621812,0.65287,4111.1,4111.0,0.8637]
[1759117626007,0.65287,4111.1,4110.8,3.4528]
[1759117626008,0.43769,4110.9,4110.8,3.2078]
[1759117626205,0.43769,4110.9,4110.8,3.4518]
[1759117626206,1.19959,4110.9,4110.8,3.4518]
[1759117626619,1.19959,4110.9,4110.8,3.7589]
[1759117627414,1.19959,4110.9,4110.8,3.5149]
[1759117627624,0.86014,4110.4,4110.3,3.2078]
[1759117627812,1.19964,4110.4,4110.3,3.4518]
[1759117628109,1.19964,4110.4,4110.3,3.2078]
[1759117628310,1.19964,4110.4,4110.3,3.9429]
[1759117630424,1.19964,4110.4,4110.3,4.1879]
[1759117630922,0.86014,4110.4,4110.3,4.1879]
[1759117632124,1.19964,4110.4,4110.3,4.1879]
[1759117633626,0.86014,4110.4,4110.3,4.1879]
[1759117633937,1.17294,4110.4,4110.3,4.1879]
[1759117634130,0.43777,4110.1,4110.0,0.3333]
[1759117634329,0.43779,4109.9,4109.8,3.5411]
[1759117634524,1.18889,4109.9,4109.8,4.2258]
[1759117635029,0.87609,4109.9,4109.8,4.2258]
[1759117635228,0.87609,4109.9,4109.8,3.9808]
[1759117635425,0.87609,4109.9,4109.8,4.2258]
[1759117635824,0.43778,4110.1,4110.0,0.566]
[1759117636031,0.43778,4110.1,4110.0,0.8993]
[1759117637028,0.43778,4110.1,4110.0,1.1443]
[1759117637431,0.65248,4110.1,4110.0,1.1443]
[1759117639723,0.43778,4110.1,4110.0,1.1443]
[1759117643525,0.65248,4110.1,4110.0,1.1443]
[1759117644027,1.19028,4110.1,4110.0,1.1443]
[1759117644933,0.87858,4110.1,4110.0,1.1443]
[1759117647127,3.4254,4110.5,4110.4,0.7524]
[1759117647449,3.64553,4110.5,4110.4,0.9974]
[1759117648430,0.43773,4110.5,4110.4,0.9974]
[1759117650332,0.43772,4110.7,4110.5,0.1226]
[1759117650540,0.65532,4110.7,4110.6,0.9974]
[1759117656946,0.96702,4110.7,4110.6,0.9974]
[1759117657146,0.65532,4110.7,4110.6,0.9974]
[1759117662346,0.43772,4110.7,4110.6,0.9974]
[1759117662946,0.65532,4110.7,4110.6,0.9974]
[1759117664044,0.96702,4110.7,4110.6,0.9974]
[1759117664951,1.19312,4110.7,4110.6,0.9974]
[1759117665943,1.19312,4110.7,4110.6,0.7524]
[1759117666447,0.43772,4110.7,4110.6,0.7524]
[1759117667147,0.65532,4110.7,4110.6,0.7524]
[1759117668942,0.43769,4110.9,4110.6,1.19012]
[1759117669147,3.86308,4111.0,4110.9,1.77473307]
[1759117669343,4.38411786,4111.0,4110.9,1.77473307]
[1759117669851,4.92191786,4111.0,4110.9,0.7524]
[1759117670751,4.92191786,4111.0,4110.9,0.3234]
[1759117672045,1.19311,4110.7,4110.6,1.56173307]
[1759117672245,1.19311,4110.7,4110.6,0.7834]
[1759117672752,0.88141,4110.7,4110.6,0.9964]
[1759117673444,0.65531,4110.7,4110.6,0.9964]
[1759117674151,1.17654856,4110.7,4110.6,0.9964]
[1759117674744,0.65531,4110.7,4110.6,2.01873307]
[1759117675351,1.17667063,4110.7,4110.6,2.01873307]
[1759117675748,0.43767,4111.1,4110.9,0.7458]
[1759117675949,0.43767,4111.1,4111.0,1.1157]
[1759117676345,0.64177,4111.1,4111.0,1.1157]
[1759117676645,1.17707,4111.1,4111.0,1.1157]
[1759117677248,0.86737,4111.1,4111.0,1.1157]
[1759117677448,0.43767,4111.1,4111.0,1.1157]
[1759117680649,0.43767,4111.1,4111.0,4.3235]
[1759117681147,1.17707,4111.1,4111.0,3.7611]
[1759117681354,1.17707,4111.1,4111.0,3.9755]
[1759117683749,1.17707,4111.1,4111.0,0.7677]
[1759117683943,1.17707,4111.1,4111.0,0.9898]
[1759117684146,1.17707,4111.1,4111.0,1.1157]
[1759117684552,1.17707,4111.1,4111.0,0.7458]
[1759117684863,1.69822847,4111.1,4111.0,0.7677]
[1759117685057,1.17707,4111.1,4111.0,0.7677]
[1759117685542,1.17707,4111.1,4111.0,0.9898]
[1759117685742,0.86737,4111.1,4111.0,1.1157]
[1759117685952,0.43767,4111.1,4111.0,1.1157]
[1759117686156,0.43767,4111.1,4111.0,4.3235]
[1759117686357,0.43767,4111.1,4111.0,5.20689262]
[1759117689746,0.44073449,4111.3,4111.2,0.2144]
[1759117689950,0.44073449,4111.3,4111.2,0.9898]
[1759117692252,0.00308449,4111.3,4111.2,0.9898]
[1759117700567,0.00308449,4111.3,4111.2,1.42746]
[1759117702263,0.43756,4112.1,4112.0,0.1295]
[1759117702468,0.43756,4112.1,4112.0,2.01109262]
[1759117703366,0.00292396,4112.1,4112.0,2.14116062]
[1759117704070,0.00292396,4112.1,4112.0,2.46056062]
[1759117710779,0.22812396,4112.1,4112.0,2.02299062]
[1759117710970,0.76602396,4112.1,4112.0,0.895598]
[1759117711167,0.76602396,4112.1,4112.0,2.02299062]
[1759117711376,0.45062396,4112.1,4112.0,2.02299062]
[1759117711673,0.22812396,4112.1,4112.0,2.02299062]
[1759117712474,0.00292396,4112.1,4112.0,2.02299062]
[1759117713281,0.22812396,4112.1,4112.0,2.02299062]
[1759117716781,0.54352396,4112.1,4112.0,2.02299062]
[1759117717479,0.22812396,4112.1,4112.0,2.02299062]
[1759117718192,0.54352396,4112.1,4112.0,2.02299062]
[1759117719395,0.66568396,4112.1,4112.0,2.02299062]
[1759117722091,0.66568396,4112.1,4112.0,1.77899062]
[1759117722284,0.66568396,4112.1,4112.0,2.02299062]
[1759117723794,0.66568396,4112.1,4112.0,1.77899062]
[1759117724091,0.66568396,4112.1,4112.0,2.02299062]
[1759117726092,0.66568396,4112.1,4112.0,1.77899062]
[1759117726391,0.66568396,4112.1,4112.0,2.02299062]
[1759117729183,0.44048396,4112.1,4112.0,2.02299062]
[1759117729592,0.44048396,4112.1,4112.0,1.139598]
[1759117732098,0.44048396,4112.1,4112.0,1.577168]
[1759117732288,0.00292396,4112.1,4112.0,1.577168]
[1759117732786,0.44048396,4112.1,4112.0,1.139598]
[1759117732993,0.00292396,4112.1,4112.0,1.139598]
[1759117733293,0.00292396,4112.1,4112.0,1.577168]
[1759117736395,3.2078,4113.0,4112.0,1.577168]
[1759117736396,3.2078,4113.0,4112.0,1.139598]
[1759117736600,0.65167,4113.0,4112.9,1.65689262]
[1759117736898,1.17095377,4113.0,4112.9,1.90089262]
[1759117737491,1.17347335,4113.0,4112.9,1.90089262]
[1759117737798,0.52180335,4113.0,4112.9,1.90089262]
[1759117738100,0.00251958,4113.0,4112.9,1.90089262]
[1759117745305,0.74721958,4113.0,4112.9,0.7735]
[1759117745603,0.44131958,4113.0,4112.9,1.90089262]
[1759117745794,0.00251958,4113.0,4112.9,1.90089262]
[1759117746209,0.00251958,4113.0,4112.9,1.0175]
[1759117746402,0.00251958,4113.0,4112.9,2.03848294]
[1759117750306,3.85937,4114.0,4113.9,0.4348]
[1759117750602,4.08397,4114.0,4113.9,2.03848294]
[1759117750808,4.38987,4114.0,4113.9,2.03848294]
[1759117751308,4.39167993,4114.0,4113.9,2.03848294]
[1759117752711,1.18387993,4114.0,4113.9,0.7735]
[1759117752908,0.4188,4113.8,4113.3,4.66621294]
[1759117753105,0.4188,4113.5,4113.4,0.4525]
[1759117753308,0.4188,4113.5,4113.4,0.6787]
[1759117753703,0.4188,4113.5,4113.4,0.991]
[1759117754105,0.7471,4113.5,4113.4,0.991]
[1759117754810,5.97902,4113.5,4113.3,3.2078]
[1759117755107,0.7471,4113.4,4113.3,3.2078]
[1759117755307,0.7471,4113.4,4113.3,3.9726]
[1759117755712,0.7471,4113.4,4113.3,3.2078]
[1759117755907,0.7471,4113.4,4113.3,3.4518]
[1759117756109,0.7471,4113.4,4113.3,3.7641]
[1759117757307,0.7471,4113.4,4113.3,3.9726]
[1759117758204,0.7471,4113.4,4113.3,2.01198294]
[1759117762412,0.4188,4113.4,4113.3,2.01198294]
[1759117762710,0.7471,4113.4,4113.3,2.01198294]
[1759117763213,0.2125,4113.4,4113.3,2.01198294]
[1759117766312,0.531,4113.4,4113.3,2.01198294]
[1759117768819,0.2125,4113.4,4113.3,2.01198294]
[1759117769714,5.43742,4113.5,4113.3,2.01198294]
[1759117769915,5.43742,4113.5,4113.4,0.7528]
[1759117771320,0.43742,4113.5,4113.4,0.7528]
[1759117772431,0.4374,4113.6,4113.4,1.19022]
[1759117772621,0.4374,4113.6,4113.5,0.8809]
[1759117774222,0.9807,4113.6,4113.5,0.8809]
[1759117774526,0.6622,4113.6,4113.5,1.90188294]
[1759117775222,0.4374,4113.6,4113.5,1.90188294]
[1759117775824,0.00180993,4114.0,4113.9,0.43737]
[1759117776031,0.00180993,4114.0,4113.9,2.01778294]
[1759117776032,0.74215228,4114.0,4113.9,2.01778294]
[1759117777331,1.26945228,4114.0,4113.9,0.9978]
[1759117778628,0.74215228,4114.0,4113.9,2.01878294]
[1759117779029,0.00180993,4114.0,4113.9,2.01878294]
[1759117782334,0.00180993,4114.0,4113.9,5.22658294]
[1759117792040,0.00180993,4114.0,4113.9,10.22658294]
[1759117794653,0.00180993,4114.0,4113.9,5.22658294]
[1759117795041,0.00180993,4114.0,4113.9,10.22658294]
[1759117795459,0.00180993,4114.0,4113.9,9.98158294]
[1759117795651,0.00180993,4114.0,4113.9,10.22658294]
[1759117796852,0.00180993,4114.0,4113.9,5.22658294]
[1759117797050,0.00180993,4114.0,4113.9,4.98158294]
[1759117797356,0.00180993,4114.0,4113.9,5.22658294]
[1759117800255,0.00180993,4114.0,4113.9,5.66395294]
[1759117801757,0.43731,4114.5,4114.4,0.7278]
[1759117802058,0.43731,4114.5,4114.4,1.99378294]
[1759117802756,0.44038355,4114.5,4114.4,1.99378294]
[1759117804052,0.00307355,4114.5,4114.4,2.43110294]
[1759117804558,0.00307355,4114.5,4114.4,5.63890294]
[1759117804949,0.00307355,4114.5,4114.4,5.20158294]
[1759117807263,0.56097355,4114.5,4114.4,5.20158294]
[1759117807662,0.22677355,4114.5,4114.4,5.20158294]
[1759117808268,0.22677355,4114.5,4114.4,5.06245149]
[1759117809663,0.00307355,4114.5,4114.4,5.06245149]
[1759117810063,0.00307355,4114.5,4114.4,5.94430298]
[1759117810567,0.43719,4115.6,4115.5,0.8539]
[1759117810866,0.43719,4115.6,4115.5,1.98075149]
[1759117811461,0.43937462,4115.6,4115.5,1.98275979]
[1759117812671,0.00218462,4115.6,4115.5,1.98275979]
[1759117816970,0.00218462,4115.6,4115.5,1.73775979]
[1759117817265,0.00218462,4115.6,4115.5,1.98275979]
[1759117817663,3.2078,4116.6,4115.5,2.99200128]
[1759117817664,0.3306,4116.5,4115.5,2.99200128]
[1759117817973,0.7582,4116.5,4116.4,1.65075149]
[1759117818170,0.43709,4116.5,4116.4,1.89575149]
[1759117818471,1.09261,4117.1,4116.4,1.89575149]
[1759117818472,0.65448,4116.7,4116.6,0.7689]
[1759117818767,0.00276218,4116.7,4116.6,1.0139]
[1759117819868,0.22016218,4116.7,4116.6,0.7689]
[1759117820172,0.55076218,4116.7,4116.6,1.0139]
[1759117820367,0.22016218,4116.7,4116.6,1.0139]
[1759117821673,0.76096218,4116.7,4116.6,1.0139]
[1759117822174,0.22016218,4116.7,4116.6,1.0139]
[1759117822568,0.00276218,4116.7,4116.6,1.0139]
[1759117823678,0.00276218,4116.7,4116.6,0.7689]
[1759117823865,0.00276218,4116.7,4116.6,1.0139]
[1759117825875,0.22016218,4116.7,4116.6,0.7689]
[1759117826080,0.76516218,4116.7,4116.6,0.7689]
[1759117826270,0.76516218,4116.7,4116.6,1.0139]
[1759117826779,0.44636218,4116.7,4116.6,1.0139]
[1759117828984,0.76516218,4116.7,4116.6,0.7689]
[1759117829178,1.09272,4116.6,4116.3,0.3392]
[1759117829374,0.2119,4116.4,4116.3,1.65315149]
[1759117829575,0.43709,4116.5,4116.3,1.55895149]
[1759117829878,0.43709,4116.5,4116.4,0.7713]
[1759117830076,0.43984218,4116.7,4116.6,0.4321]
[1759117830287,0.43984218,4116.7,4116.6,1.0163]
[1759117830477,0.00276218,4116.7,4116.6,1.89815149]
[1759117835676,0.97053218,4116.7,4116.6,1.65315149]
[1759117835874,0.53346218,4116.7,4116.6,1.89815149]
[1759117836178,0.00276218,4116.7,4116.6,1.89815149]
[1759117838383,0.2119,4117.6,4117.5,0.8968]
[1759117838586,0.7569,4118.0,4117.9,0.7713]
[1759117838787,1.19384,4118.0,4117.9,1.65315149]
[1759117839489,1.19632871,4118.0,4117.9,1.43185149]
[1759117839877,1.19387,4117.7,4117.6,0.88185149]
[1759117840085,1.19387,4117.7,4117.6,1.46705149]
[1759117840289,1.19387,4117.7,4117.6,1.67785149]
[1759117841391,1.19387,4117.7,4117.6,1.89915149]
[1759117842985,1.19387,4117.7,4117.6,1.0173]
[1759117843186,1.19387,4117.7,4117.6,1.89915149]
[1759117848097,1.19387,4117.7,4117.6,0.3392]
[1759117848592,1.19387,4117.7,4117.6,0.55]
[1759117848987,0.43696,4117.8,4117.7,0.3392]
[1759117849295,0.43696,4117.8,4117.7,1.65315149]
[1759117849497,0.64886,4117.8,4117.7,1.65315149]
[1759117852593,1.19386,4117.8,4117.7,1.65315149]
[1759117853998,0.87506,4117.8,4117.7,1.65315149]
[1759117854297,0.64886,4117.8,4117.7,1.65315149]
[1759117854492,0.00248871,4118.0,4117.9,0.4301]
[1759117854696,0.43942871,4118.0,4117.9,0.9861]
[1759117855195,0.00248871,4118.0,4117.9,0.9861]
[1759117867395,0.3154,4119.1,4118.5,0.1326]
[1759117867597,3.9546,4119.7,4119.6,0.2075]
[1759117867799,4.07596,4119.7,4119.6,0.7411]
[1759117868106,4.39136,4119.7,4119.6,0.7411]
[1759117868307,4.39136,4119.7,4119.6,1.75898938]
[1759117868506,3.95699847,4119.7,4119.6,1.76177676]
[1759117870098,3.95699847,4119.7,4119.6,0.00278738]
[1759117870295,0.64895,4118.8,4118.7,3.9489]
[1759117870504,0.7468,4118.8,4118.7,4.0749]
[1759117871414,1.18357,4119.6,4119.5,0.8737]
[1759117871601,1.18357,4119.6,4119.5,1.1187]
[1759117872903,0.86817,4119.6,4119.5,1.1187]
[1759117873210,0.86817,4119.6,4119.5,0.8737]
[1759117873507,1.18027,4119.6,4119.5,1.1197]
[1759117874010,3.65119847,4119.7,4119.6,0.7856]
[1759117874196,3.96329847,4119.7,4119.6,0.562]
[1759117874397,3.96329847,4119.7,4119.6,0.7856]
[1759117874798,3.65119847,4119.7,4119.6,0.7856]
[1759117875202,3.96329847,4119.7,4119.6,0.7856]
[1759117875804,0.2181,4119.4,4119.3,0.2257]
[1759117875999,0.441,4119.4,4119.3,0.562]
[1759117876208,0.441,4119.2,4117.9,1.74042764]
[1759117876409,0.7531,4118.9,4118.8,0.808]
[1759117877106,1.18995,4118.8,4118.7,0.00311446]
[1759117880104,1.18995,4118.8,4118.7,0.33941446]
[1759117881214,1.18995,4118.8,4118.7,0.00311446]
[1759117884010,1.43595,4118.8,4118.7,0.00311446]
[1759117884219,6.94827059,4118.8,4118.7,0.00311446]
[1759117885016,6.94827059,4118.8,4117.7,3.4186]
[1759117885017,0.4392,4117.8,4117.7,3.4186]
[1759117885216,1.19796,4117.8,4117.7,3.8987]
[1759117886012,1.19796,4117.8,4117.7,3.90061853]
[1759117886413,1.19796,4117.8,4117.7,3.99961853]
[1759117887320,1.19796,4117.8,4117.7,0.00191853]
[1759117888523,1.19796,4117.8,4117.7,0.33501853]
[1759117890222,1.19796,4117.8,4117.7,0.00191853]
[1759117891520,1.19806,4116.8,4116.7,0.3331]
[1759117892021,1.19806,4116.8,4116.7,0.5439]
[1759117892218,0.43706,4116.8,4116.7,0.7627]
[1759117892423,1.33847,4117.6,4117.5,0.8876]
[1759117892424,1.19798,4117.6,4117.5,0.8876]
[1759117892621,0.87832873,4117.6,4117.5,1.90548938]
[1759117894117,1.20012873,4117.6,4117.5,1.90548938]
[1759117895421,1.20012873,4117.6,4117.0,0.1249]
[1759117895620,1.19803,4117.1,4117.0,0.3331]
[1759117895821,0.87623,4117.1,4117.0,0.8876]
[1759117896023,0.65463,4117.1,4117.0,0.8876]
[1759117897018,0.65463,4117.1,4116.7,3.45642595]
[1759117897019,0.43705,4116.9,4116.8,0.246]
[1759117897221,1.19805,4116.9,4116.8,0.7899]
[1759117897422,0.87625,4116.9,4116.8,1.0087]
[1759117897924,0.43705,4116.9,4116.8,1.0087]
[1759117898127,0.43705,4116.9,4116.8,2.02658938]
[1759117898326,0.00214873,4117.6,4117.5,0.8876]
[1759117898623,0.00214873,4117.6,4117.5,1.90548938]
[1759117898624,0.43912873,4117.6,4117.5,1.90548938]
[1759117899020,1.20012873,4117.6,4117.5,0.5439]
[1759117899215,0.43705,4116.9,4116.8,1.01788938]
[1759117899421,0.87625,4116.9,4116.8,1.44748938]
[1759117899614,0.43705,4116.9,4116.8,1.44748938]
[1759117899828,0.43705,4116.9,4116.8,1.78058938]
[1759117900524,1.19805,4116.9,4116.8,0.7627]
[1759117900729,1.19805,4116.9,4116.8,0.5439]
[1759117901828,0.761,4116.8,4116.7,0.00262595]
[1759117910330,0.761,4116.8,4115.4,0.7627]
[1759117910331,0.761,4115.5,4115.4,0.7627]
[1759117910630,0.761,4115.5,4115.4,1.78058938]
[1759117910631,0.4392,4115.5,4115.4,1.78058938]
[1759117911026,0.2176,4115.5,4115.4,1.78058938]
[1759117911232,0.2176,4115.5,4115.4,1.78285848]
[1759117911440,0.3218,4116.4,4116.1,0.2108]
[1759117911628,0.65471,4116.4,4116.3,1.78058938]
[1759117912130,3.5296,4116.7,4116.3,1.78058938]
[1759117912131,0.65469,4116.6,4116.5,0.8876]
[1759117912430,0.65469,4116.6,4116.5,1.90548938]
[1759117912629,1.19809,4116.6,4116.5,0.7627]
[1759117912823,0.87634,4116.2,4116.1,1.78058938]
[1759117913028,0.65469,4116.6,4116.5,0.5545]
[1759117913228,0.65469,4116.6,4116.5,0.8876]
[1759117913532,0.87629,4116.6,4116.5,0.8876]
[1759117913731,1.20139,4116.6,4116.5,0.8876]
[1759117915331,0.65469,4116.6,4116.5,0.8876]
[1759117915531,0.87559,4116.6,4116.5,0.8876]
[1759117915730,0.87559,4116.6,4116.0,0.56205]
[1759117915731,0.43713,4116.2,4116.1,1.01788938]
[1759117915931,0.88263,4116.2,4116.1,0.7504]
[1759117916132,0.88263,4116.2,4116.1,1.76828938]
[1759117917827,1.20778,4115.7,4115.6,0.7504]
[1759117918034,0.66178,4115.7,4115.6,0.7504]
[1759117918335,0.66178,4115.7,4115.6,1.76828938]
[1759117918838,1.20778,4115.7,4115.6,1.76828938]
[1759117919538,1.20778,4115.7,4115.6,0.5281]
[1759117919841,1.20778,4115.7,4115.6,0.7504]
[1759117921440,1.3301,4115.5,4115.4,0.0022691]
[1759117921642,1.84215589,4115.5,4115.4,0.0022691]
[1759117924347,0.94925589,4115.5,4115.4,1.77055848]
[1759117924536,3.64499,4115.7,4115.6,0.7504]
[1759117926339,3.2078,4116.2,4116.1,0.2157]
[1759117926544,4.41553,4116.2,4116.1,0.7504]
[1759117927137,3.6533,4116.2,4116.1,0.7504]
[1759117927444,3.6533,4116.2,4116.0,0.1339]
[1759117927445,4.33736,4116.8,4116.7,0.7504]
[1759117927944,4.66246,4116.8,4116.7,0.7504]
[1759117930940,4.66246,4116.8,4116.7,0.5281]
[1759117931147,1.20773,4116.2,4116.1,0.5281]
[1759117932143,0.43716,4115.9,4115.8,3.4271]
[1759117932336,1.18306,4115.9,4115.8,3.95]
[1759117932545,0.85976,4115.9,4115.8,3.95]
[1759117937250,0.2053,4115.9,4115.8,3.95]
[1759117938852,0.7459,4115.9,4115.8,0.7422]
[1759117940956,0.4226,4115.9,4115.8,0.7422]
[1759117941157,0.7459,4115.9,4115.8,0.7422]
[1759117941957,0.4226,4115.9,4115.8,0.7422]
[1759117943859,0.7299,4115.9,4115.8,0.7422]
[1759117944961,1.16706,4115.9,4115.8,0.7422]
[1759117945557,0.43717,4115.8,4115.7,0.247]
[1759117945748,0.87439,4115.6,4115.5,0.3338]
[1759117945953,1.18169,4115.6,4115.4,0.3360691]
[1759117946557,1.7485955,4115.5,4115.4,0.0022691]
[1759117946961,2.26154486,4115.5,4115.4,0.0022691]
[1759117950367,1.37974936,4115.5,4115.4,0.0022691]
[1759117952961,0.43728,4114.8,4114.7,0.543]
[1759117953171,1.18178,4114.8,4114.7,0.543]
[1759117954062,1.18178,4114.8,4114.7,0.54508505]
[1759117954767,1.18178,4114.8,4114.7,0.75958505]
[1759117955368,1.18178,4114.8,4114.7,0.54508505]
[1759117958268,1.18178,4114.8,4114.7,0.75958505]
[1759117968172,41.46034,4115.1,4115.0,0.8824]
[1759117968372,41.46034,4115.1,4115.0,1.7641955]
[1759117968578,0.66034,4115.1,4115.0,1.7641955]
[1759117969774,3.5151,4115.8,4115.2,0.4237]
[1759117969973,3.64497,4115.8,4115.7,1.6392955]
[1759117970272,3.9523,4115.8,4115.0,0.1249]
[1759117970580,1.18171,4115.4,4115.3,0.7575]
[1759117970972,1.18171,4115.4,4115.3,0.543]
[1759117971166,0.7445,4115.4,4115.3,0.543]
[1759117971372,1.09282,4116.3,4115.7,0.7575]
[1759117971373,0.5533,4116.1,4115.7,0.7575]
[1759117971672,0.2231,4115.9,4115.8,0.3338]
[1759117971876,1.18166,4115.9,4115.8,0.7575]
[1759117972471,0.87436,4115.9,4115.8,0.7575]
[1759117972977,0.87439,4115.6,4115.5,0.8824]
[1759117973179,1.18169,4115.6,4115.5,1.7641955]
[1759117973378,0.87439,4115.6,4115.5,1.7641955]
[1759117976283,0.2161,4115.9,4115.8,0.7581]
[1759117976483,0.3324,4116.2,4115.8,0.7581]
[1759117976484,0.43713,4116.2,4116.1,0.4366]
[1759117976780,0.43713,4116.2,4116.1,0.7581]
[1759117976982,0.43713,4116.2,4116.1,1.6398955]
[1759117978382,3.2078,4116.8,4116.7,0.7581]
[1759117978383,4.40806,4116.8,4116.7,0.7581]
[1759117978585,3.64486,4116.8,4116.7,1.6398955]
[1759117978878,3.86096,4116.8,4116.7,1.6398955]
[1759117979080,4.07566,4116.8,4116.7,1.6398955]
[1759117979678,4.40806,4116.8,4116.7,1.4253955]
[1759117979878,1.20029,4116.6,4116.5,0.5436]
[1759117980388,0.86789,4116.6,4116.5,0.8892]
[1759117986589,1.20029,4116.6,4116.5,0.8892]
[1759117987806,1.20029,4116.6,4116.5,0.7581]
[1759117988101,1.20029,4116.6,4116.0,3.77604]
[1759117988102,0.7632,4116.1,4116.0,3.2078]
[1759117988403,0.7632,4116.1,4116.0,0.2221]
[1759117988596,0.7632,4116.1,4116.0,0.5436]
[1759117988802,1.20034,4116.1,4116.0,0.5436]
[1759117992204,1.20034,4116.1,4116.0,0.7581]
[1759117992608,1.20034,4116.1,4116.0,0.8906]
[1759117993307,0.65324,4116.1,4116.0,0.8906]
[1759117993507,0.43714,4116.1,4116.0,0.8906]
[1759117996412,0.43712,4116.3,4116.2,0.5489]
[1759117996713,0.43712,4116.3,4116.2,1.77887076]
[1759117998204,0.43711,4116.4,4116.3,1.19602]
[1759117998406,0.43711,4116.4,4116.3,3.9667]
[1759118001803,0.43711,4116.4,4116.3,4.2127]
[1759118002511,0.66211,4116.4,4116.3,4.2127]
[1759118003206,0.66211,4116.4,4116.3,1.0049]
[1759118003711,0.66211,4116.4,4116.3,0.7589]
[1759118003906,0.4248,4116.2,4116.1,0.3314]
[1759118004114,0.7638,4116.2,4116.1,0.5405]
[1759118004410,0.7638,4116.2,4116.1,0.7542]
[1759118007819,0.4248,4116.2,4116.1,0.7542]
[1759118009421,0.86193,4116.2,4116.1,0.7542]
[1759118011218,0.65403,4116.2,4116.1,0.7542]
[1759118014134,1.20093,4116.2,4116.1,0.7542]
[1759118014638,0.86193,4116.2,4116.1,0.7542]
[1759118015226,1.20093,4116.2,4116.1,0.7542]
[1759118016024,1.20093,4116.2,4116.1,0.3314]
[1759118016229,1.20097,4115.8,4115.7,3.962]
[1759118016430,1.20097,4115.8,4115.7,4.208]
[1759118016833,0.86197,4115.8,4115.7,4.208]
[1759118017136,0.65407,4115.8,4115.7,4.208]
[1759118017634,0.43717,4115.8,4115.7,4.208]
[1759118018331,0.43717,4115.8,4115.7,4.207]
[1759118022430,0.65407,4115.8,4115.7,4.207]
[1759118023633,0.43717,4115.8,4115.7,4.207]
[1759118023834,0.65407,4115.8,4115.7,4.207]
[1759118025234,0.2169,4115.8,4115.7,4.207]
[1759118025541,0.43717,4115.8,4115.7,5.22697076]
[1759118026738,0.77614,4116.1,4116.0,0.1244]
[1759118026940,0.77614,4116.1,4116.0,1.1236]
[1759118026941,0.99304,4116.1,4116.0,1.1236]
[1759118028540,0.65404,4116.1,4116.0,1.1236]
[1759118028742,0.43714,4116.1,4116.0,1.1236]
[1759118029742,0.65404,4116.1,4116.0,1.1236]
[1759118029943,1.20094,4116.1,4116.0,1.1236]
[1759118030440,0.86194,4116.1,4116.0,1.1236]
[1759118030834,1.20094,4116.1,4116.0,1.1236]
[1759118031543,0.86194,4116.1,4116.0,1.1236]
[1759118031740,0.123,4116.5,4116.0,1.1236]
[1759118031741,3.2078,4116.8,4116.0,0.7922]
[1759118031947,0.95310728,4116.7,4116.6,0.7542]
[1759118032145,0.95310728,4116.7,4116.6,1.77417076]
[1759118033146,1.17000728,4116.7,4116.6,1.77417076]
[1759118033440,0.51603728,4116.7,4116.6,1.77417076]
[1759118034349,0.43706,4116.9,4116.7,0.7757]
[1759118034537,0.43706,4116.9,4116.8,1.0207]
[1759118035246,0.43706,4116.9,4116.8,1.45776]
[1759118036755,0.43706,4116.9,4116.8,1.0207]
[1759118037653,0.66106,4116.9,4116.8,1.0207]
[1759118038146,0.66106,4116.9,4116.8,0.7757]
[1759118038352,1.19836,4116.9,4116.8,0.7998]
[1759118038853,1.19836,4116.9,4116.8,1.0207]
[1759118039547,0.4445,4116.9,4116.8,1.45776]
[1759118039745,0.66105,4117.0,4116.9,0.7757]
[1759118039945,0.66105,4117.0,4116.9,1.79567076]
[1759118040146,0.88155,4117.0,4116.9,1.79567076]
[1759118041764,0.88155,4117.0,4116.7,3.64487]
[1759118041765,0.43706,4116.8,4116.7,3.2078]
[1759118041951,1.19841,4116.5,4116.4,0.7757]
[1759118042148,1.19841,4116.5,4116.4,1.0207]
[1759118042348,0.88161,4116.5,4116.4,1.0207]
[1759118042652,3.2078,4117.3,4116.4,1.0207]
[1759118042849,4.08931,4117.3,4117.2,0.5548]
[1759118043049,4.60409105,4117.3,4117.2,0.5548]
[1759118043254,45.40409105,4117.3,4117.2,0.5548]
[1759118043554,45.72089105,4117.3,4117.2,0.5548]
[1759118043955,0.7613,4116.8,4116.7,0.7998]
[1759118044252,0.4445,4116.8,4116.7,1.0207]
[1759118044452,0.224,4116.8,4116.7,1.0207]
[1759118047980,0.66112,4116.3,4116.2,3.6461]
[1759118048164,1.19842,4116.3,4116.2,3.8911]
[1759118048551,1.19842,4116.3,4116.2,4.2285]
[1759118049357,1.19842,4116.3,4116.2,1.0207]
[1759118049558,1.19842,4116.3,4116.2,0.7757]
[1759118049757,1.19842,4116.3,4116.2,1.0207]
[1759118050853,1.19842,4116.3,4115.7,3.2078]
[1759118050854,0.66117,4115.8,4115.7,0.4383]
[1759118051060,1.19847,4115.8,4115.7,0.6833]
[1759118051463,1.19847,4115.8,4115.7,1.0207]
[1759118052660,1.19847,4115.8,4115.7,0.7757]
[1759118054561,1.19847,4115.8,4115.7,0.5548]
[1759118054969,1.21459,4115.6,4115.5,1.41866264]
[1759118055456,1.21462,4115.3,4115.2,4.62646264]
[1759118055656,1.21462,4115.3,4115.2,4.84026264]
[1759118055857,0.88002,4115.3,4115.2,4.84026264]